Cogmind - Beta 13 @@@ ROGUE MODE // 2024.04.17 @ 00:03:13 Player: Conlarando Result: Destroyed by D-53 Grenadier with Mini Grenade Launcher Performance ------------- Evolutions (0) 0 Regions Visited (2) 400 Robots Destroyed (19) 95 Value Destroyed (450) 450 Prototype IDs (3) 60 Alien Tech Used (0) 0 Bonus (0) 0 TOTAL SCORE: 1005 Bonus ------- None Cogmind --------- Core Integrity 0/250 Matter 192/300 Energy 254/280 System Corruption 1% Temperature Cool (56) Movement Treading (240) Ox1 Location -10/Mines Parts ------- > --- POWER (1) -------- Heavy Ion Engine > --- PROPULSION (2) --- Light Treads Light Treads > --- UTILITY (2) ------ High-capacity Storage Unit Light Armor Plating > --- WEAPON (2) ------- EM Shotgun EM Shotgun > --- INVENTORY (20) --- Ion Engine Heavy Ion Engine Flight Unit Flight Unit Small Storage Unit Power Shielding Improved Utility Shielding Light Armor Plating Light Armor Plating System Shield Beam Rifle Beam Rifle Beam Rifle Assault Rifle Assault Rifle Assault Rifle Datajack Peak State ------------ > --- POWER ------------ Heavy Ion Engine > --- PROPULSION ------- Light Treads Light Treads > --- UTILITY ---------- High-capacity Storage Unit Light Armor Plating > --- WEAPON ----------- Beam Rifle Beam Rifle > --- INVENTORY -------- Ion Engine Heavy Ion Engine Flight Unit Flight Unit Small Storage Unit Power Shielding Improved Utility Shielding Light Armor Plating Light Armor Plating System Shield EM Shotgun EM Shotgun Beam Rifle Assault Rifle Assault Rifle Assault Rifle Datajack [Rating: 13] Favorites ----------- Power Ion Engine Engine Ion Engine Propulsion Light Treads Treads Light Treads Utility Light Armor Plating Storage High-capacity Storage Unit Processor Signal Interpreter Protection Light Armor Plating Weapon Light Assault Rifle Energy Gun EM Shotgun Ballistic Gun Light Assault Rifle Launcher Grenade Launcher Build | -11 -10 -10 ------- Run | Yrd Mat Min Slots Evolved . | . . . Power . | . . . Propulsion . | . . . Utility . | . . . Weapon . | . . . Parts Attached 22 | 6 9 7 Power 2 | 1 1 . Engine 2 | 1 1 . Core . | . . . Reactor . | . . . Propulsion 4 | 2 2 . Treads 4 | 2 2 . Leg . | . . . Wheel . | . . . Hover . | . . . Flight . | . . . Utility 6 | 1 3 2 Device . | . . . Storage 2 | 1 1 . Processor 1 | . . 1 Hackware . | . . . Protection 3 | . 2 1 Artifact . | . . . Weapon 10 | 2 3 5 Energy Gun 4 | . . 4 Energy Cannon . | . . . Ballistic Gun 4 | 2 2 . Ballistic Cannon . | . . . Launcher 2 | . 1 1 Special Weapon . | . . . Impact Weapon . | . . . Slashing Weapon . | . . . Piercing Weapon . | . . . Special Melee Weapon . | . . . Unidentified Prototypes 1 | . 1 . Parts Lost 2 | . . 2 Power . | . . . Propulsion . | . . . Utility . | . . . Weapon 2 | . . 2 Highest Loss Streak 2 | . . 2 To Critical Strikes . | . . . Average Slot Usage (%) 98 | . 97 99 Engine 14 | . 14 14 Treads 27 | . 27 28 Storage 14 | . 14 14 Protection 12 | . 12 12 Energy Gun 3 | . . 12 Ballistic Gun 24 | . 27 14 Naked Turns . | . . . Heaviest Build 57 | 13 54 57 Greatest Support 40 | 40 40 40 Greatest Overweight (x) 3 | 3 1 1 Average Overweight (x) . | . . 1 Largest Inventory Capacity 20 | 8 20 20 Average Capacity 18 | 7 17 20 Most Carried 20 | 2 18 20 Average Carried 12 | 1 11 18 Final Capacity 20 | 8 20 20 Final Carried 18 | 2 18 17 Class Distribution -------------------- 100% | Mutant Dominant Class ---------------- Mutant | -10/Materials Mutant | -10/Mines Resources | -11 -10 -10 ----------- Run | Yrd Mat Min Matter Collected 621 | 223 343 55 Remotely . | . . . Salvage Created 728 | . 649 79 Parts 35 | . 35 . Haulers Intercepted 1 | . 1 . Recyclers Shooed 1 | . 1 . Parts Field Recycled . | . . . Retrieved Matter . | . . . Parts Self-Destructed . | . . . Prevented . | . . . Kills | -11 -10 -10 ------- Run | Yrd Mat Min Combat Hostiles Destroyed 31 | . 12 19 Guns 11 | . 10 1 AOE 20 | . 2 18 Classes Destroyed 7 | . 6 1 Hauler 1 | . 1 . Recycler 2 | . 2 . Operator 1 | . 1 . Watcher 3 | . 3 . Swarmer 3 | . 3 . Grunt 9 | . 9 . Assembled 19 | . . 19 Best Kill Streak 19 | . 6 19 Combat Bots Only 19 | . 6 19 Max Kills in Single Turn 5 | . 2 5 Gunslinging . | . . . Exploded 5 | . 2 5 Melee . | . . . Uniques/NPCs Destroyed . | . . . Combat | -11 -10 -10 -------- Run | Yrd Mat Min Hostile Shots Fired 99 | . 67 32 Missed 29 | . 20 9 Damage Taken 1099 | . 653 446 Core 252 | . 177 75 Absorbed by Shields . | . . . Regen/Repaired (Parts) 120 | . 120 . Core Remaining (%) 100 | 100 . . Volleys Fired 63 | . 50 13 Largest 2 | . 2 2 Hottest 112 | . 50 112 Shots Fired 120 | . 101 19 Gun 110 | . 99 11 Cannon . | . . . Launcher 10 | . 2 8 Special . | . . . Kinetic 100 | . 99 1 Thermal 6 | . . 6 Explosive 10 | . 2 8 Electromagnetic 4 | . . 4 Robot Hit Streak 16 | . 16 5 Robot Miss Streak 3 | . 3 2 Penetration Max . | . . . Secondary Targets . | . . . Shots Hit Robots 81 | . 70 11 Core Hits 78 | . 31 47 Critical Kills . | . . . Critical Parts Destroyed . | . . . Critical Strikes . | . . . Melee Attacks . | . . . Impact . | . . . Slashing . | . . . Piercing . | . . . Sneak Attacks . | . . . Combat Hostiles . | . . . Follow-up Attacks . | . . . Damage Inflicted 2018 | . 900 1118 Guns 832 | . 733 99 Cannons . | . . . Explosions 1186 | . 167 1019 Melee . | . . . Ramming . | . . . Kinetic 740 | . 733 7 Thermal 43 | . . 43 Explosive 1186 | . 167 1019 Electromagnetic 49 | . . 49 Impact . | . . . Slashing . | . . . Piercing . | . . . Highest Corruption 1 | . 1 1 Average Corruption 1 | . 1 1 Corruption Purged . | . . . Corruption Blocked . | . . . Effects 10 | . 7 3 Message Errors 4 | . 2 2 Matter Fused 3 | . 2 1 Energy Discharges 1 | . 1 . Data Loss (major) 1 | . 1 . Misfires 1 | . 1 . Overload Shots . | . . . Overflow Damage 4 | . 4 . Projectiles . | . . . Explosions 4 | . 4 . Melee . | . . . Knockbacks . | . . . Impact . | . . . Kinetic . | . . . Secondary . | . . . Self-Inflicted Damage 54 | . 40 14 Shots 2 | . 1 1 Rammed . | . . . Targets Rammed . | . . . Kicked . | . . . Crushed . | . . . Highest Temperature 189 | . 43 189 Average Temperature 29 | . 15 57 Received Heat Transfer 295 | . 255 40 Siege Activations . | . . . Robots Corrupted . | . . . Combat Hostiles . | . . . Parts Fried . | . . . Impact Corruptions . | . . . Robots Melted . | . . . Combat Hostiles . | . . . Parts Melted . | . . . Heat Transferred 111 | . . 111 Parts Sabotaged . | . . . Parts Stolen . | . . . Parts Stripped . | . . . Power Chain Reactions . | . . . Alert | -11 -10 -10 ------- Run | Yrd Mat Min Peak Influence 191 | . 191 52 Initial 26 | . . 26 Average 58 | . 75 17 Maximum Alert Level . | . . . Low Security (%) 100 | 100 100 100 Level 1 . | . . . Level 2 . | . . . Level 3 . | . . . Level 4 . | . . . Level 5 . | . . . High Security . | . . . Max Security . | . . . Squads Dispatched 3 | . 2 1 Investigation 1 | . . 1 Extermination . | . . . Reinforcement 2 | . 2 . Assault . | . . . Garrison . | . . . Intercept . | . . . Searches Triggered . | . . . Construction Impeded . | . . . Haulers Reinforced . | . . . Active Scanning Responses . | . . . Cargo Convoy Interrupts . | . . . Stealth | -11 -10 -10 --------- Run | Yrd Mat Min Distress Signals . | . . . Communications Jammed . | . . . Distress Signals . | . . . Times Spotted 38 | . 17 21 Peak Tracking Total 11 | . 5 11 Tactical Retreats 1 | . 1 . Traps | -11 -10 -10 ------- Run | Yrd Mat Min Traps Triggered 1 | . 1 . Indirectly . | . . . Trap Hack Attempts . | . . . Triggered . | . . . Disarmed . | . . . Reprogrammed . | . . . Reused . | . . . Traps Extracted . | . . . Installed . | . . . Triggered . | . . . Machines | -11 -10 -10 ---------- Run | Yrd Mat Min Machines Disabled 1 | . 1 . Max in Single Turn 1 | . 1 . Machines Repaired . | . . . Machines Dismantled . | . . . Machines Sabotaged . | . . . Overloaded Fab Kills . | . . . Hacking | -11 -10 -10 --------- Run | Yrd Mat Min Machines Accessed 7 | . 6 1 Terminals 3 | . 3 . Fabricators . | . . . Repair Stations 1 | . 1 . Recycling Units 2 | . 2 . Scanalyzers . | . . . Garrison Access . | . . . Total Hacks 20 | . 19 1 Successful 11 | . 10 1 Failed 9 | . 9 . Catastrophic 1 | . 1 . Database Lockouts . | . . . Manual 5 | . 5 . Terminals 10 | . 10 . Fabricators . | . . . Repair Stations 4 | . 4 . Recycling Units 5 | . 5 . Scanalyzers . | . . . Garrison Access . | . . . Terminal Hacks 5 | . 4 1 Part Schematic 1 | . 1 . Prototype ID Bank 1 | . 1 . Open Door 1 | . . 1 Hauler Manifests 1 | . 1 . Zone Layout 1 | . 1 . Fabricator Hacks . | . . . Repair Station Hacks 4 | . 4 . Scan Component 2 | . 2 . Repair 2 | . 2 . Recycling Unit Hacks 2 | . 2 . Retrieve Components 2 | . 2 . Scanalyzer . | . . . Garrison Access Hacks . | . . . Unauthorized Hacks . | . . . Terminals . | . . . Fabricators . | . . . Repair Stations . | . . . Recycling Units . | . . . Scanalyzers . | . . . Garrison Access . | . . . Data Cores Recovered . | . . . Used . | . . . Hacking Detections 5 | . 5 . Full Trace Events 2 | . 2 . Feedback Events . | . . . Feedback Blocked . | . . . Robot Schematics Acquired . | . . . Robots Built . | . . . Authchips . | . . . Time . | . . . Total Robot Build Rating . | . . . Part Schematics Acquired 1 | . 1 . Parts Built . | . . . Authchips . | . . . Time . | . . . Total Part Build Rating . | . . . Parts Repaired 2 | . 2 . Time 52 | . 52 . Parts Recycled . | . . . Recycled Matter . | . . . Retrieved Matter . | . . . Retrieved Components 1 | . 1 . Parts Scanalyzed . | . . . Part Schematics Acquired . | . . . Parts Damaged . | . . . Bothacking | -11 -10 -10 ------------ Run | Yrd Mat Min Used RIF Installer . | . . . Robots Hacked . | . . . Non-combat . | . . . Combat . | . . . Robot Hacks Applied . | . . . Relay Couplers Released . | . . . Fabnet Peak Effective % . | . . . Robots Rewired . | . . . Allies Hacked . | . . . Hacks Repelled . | . . . Allies | -11 -10 -10 -------- Run | Yrd Mat Min Total Allies . | . . . Largest Group . | . . . Highest-Rated Group . | . . . Highest-Rated Ally . | . . . Total Orders . | . . . Ally Attacks . | . . . Total Damage . | . . . Kills . | . . . Allies Corrupted . | . . . Allies Melted . | . . . Intel | -11 -10 -10 ------- Run | Yrd Mat Min Robot Analysis Total . | . . . Derelict Logs Recovered 1 | . . 1 Drone Launches . | . . . Drone Recoveries . | . . . Exploration | -11 -10 -10 ------------- Run | Yrd Mat Min Turns Passed 2650 | 78 1923 649 Spaces Moved 1028 | 46 751 231 Core 10 | 10 . . Treads 1018 | 36 751 231 Legs . | . . . Wheels . | . . . Hover . | . . . Flight . | . . . Fastest Speed 50 | 50 160 240 Average Speed 223 | 146 223 240 Slowest Speed 240 | 200 240 240 Overloaded Moves . | . . . Propulsion Burnouts . | . . . Robots Hopped . | . . . Cave-ins Triggered . | . . . Exploration Rate (%) 41 | 3 86 35 Regions Visited 2 Branch Regions 1 Pre-discovered Areas . | . . . Known Exits Taken . | . . . Unknown Exits Taken 2 | 1 1 . Scrap Searched . | . . . Spaces Dug . | . . . Terrain Destroyed 69 | . 10 59 Melee . | . . . Projectile . | . . . AOE 69 | . 10 59 Terrain Rammed . | . . . Walls Destroyed . | . . . Machines Disabled . | . . . Actions | -11 -10 -10 --------- Run | Yrd Mat Min Total 1264 | 54 904 306 Wait 124 | . 71 53 Move 1026 | 45 750 231 Hop . | . . . Pick Up 24 | 3 19 2 Fast Attach 9 | 5 4 . Attach 5 | 1 2 2 Detach . | . . . Swap 8 | . 3 5 Drop 5 | . 5 . Fire 63 | . 50 13 Melee . | . . . Ram . | . . . Kick . | . . . Crush . | . . . Escape Stasis . | . . . Rewire . | . . . Trap . | . . . Miscellaneous . | . . . Route ------- -11/Scrapyard -10/Materials (discovered 4 exits: *Mat x3 / *Min) -10/Mines (discovered 2 exits: *Mat / *Sub) History --------- Turn | Location | Event 10 | -11/Scrapyard | Discovered new exit (range 16) 79 | -11/Scrapyard | Entered Materials 308 | -10/Materials | Build established: Mutant 827 | -10/Materials | Discovered new exit (range 4) 965 | -10/Materials | Repaired Assault Rifle 992 | -10/Materials | Repaired Lgt. Treads 1261 | -10/Materials | Discovered new exit (range 16) 1357 | -10/Materials | Core integrity fell below 50% 1437 | -10/Materials | Discovered new exit (range 16) 1586 | -10/Materials | Discovered new exit (range 7) 2002 | -10/Materials | Entered Mines 2029 | -10/Mines | Identified exit to Subcaves 2075 | -10/Mines | Met a Derelict shopkeep closing up shop 2220 | -10/Mines | Discovered new exit (range 5) 2233 | -10/Mines | Identified exit to Materials 2321 | -10/Mines | Assembled infested the area 2342 | -10/Mines | Core integrity fell below 20% 2386 | -10/Mines | Destroyed 19 combat bots 2651 | -10/Mines | Destroyed by D-53 Grenadier with Mini Grenade Launcher Last Messages --------------- 02450_ U-05 Engineer lays Concrete. 02454_ Acquired 12 matter. 02455_ U-05 Engineer lays Concrete. 02457_ U-05 Engineer builds a Wall. 02458_ U-05 Engineer lays Concrete. 02459_ U-05 Engineer builds a Wall. 02459_ Acquired 5 matter. 02461_ U-05 Engineer lays Concrete. 02467_ U-05 Engineer builds a Wall. 02470_ K-01 Serf collects debris. 02489_ U-05 Engineer builds a Wall. 02517_ K-01 Serf collects debris. 02539_ Acquired 6 matter. 02646_ C-30 ARC bursts open, deploying its payload. 02646_ D-53 Grenadier unfolds itself. 02647_ K-01 Serf collects debris. 02647_ T-07 Excavator destroyed. 02649_ D-53 Grenadier misfires. 02649_ K-01 Serf destroyed. Map ----- +----------------------------------------------------+ | ???????#?????????# ## #?? | | ???????#>#???????# #### ##?##### ## #? | | ???????# #####?# #??### #??????? #?? ?? | | ????????# ### ##???## #????????#????? ?? | | ????????## ## ##???####????????????????? | | ?????????# # ##??????????????????????? | | ??########### ##?????????????????????? | | ??# #?## % ##????????????????????? | | ??# #?# ##???????????????????? | | ??# #?# ## ###?????????????????? | | ??# < #?# #### """ ##????????????????? | | ??# %% #?## #?## """ #????????????????? | | ??# #??# ### """ #????????????????? | | ??###%###?## ## ##????????????????? | | ????# ##### ## ####?????????????????? | | ????# ### ##????????????????????? | | ????# ### ######????????????????? | | ????####### ##?# ##???????????????? | | ??????????####??## #???????????????? | | ?????????????????## = #???????????????? | | ??????????????????## !% #???????????????? | | ?????????????????#### d% #??##########????? | | ?????????????????# ??### #####?? | | ?????????????????# d ##??# ######## ##?? | | ?????????????????# ##?# # #?? | | ?????????????????# @ # #?### #### #?? | | ????????????????# # ### # # ## ##?? | | ???????????????### ## # ## # ##?? | | ??????????????## ## # ## ## ##? | | ?????????????## # ### ## ### ## | | ????????????## ######## ## # #?# # | | ???????????## ##??????## # #?## # | | ???????????# ##????????# ###??# | | ???????????# ###?????????## ###???# | | ???????????## ##????????????# ###????# | | ????????????###?????????????## ##??????### | | ?????????????????????????????#####?????????### | | ?????????????????????????????????????????????? | | ?????????????????????????????????????????????? | | | | | | | | | | | | | | | | | | | | | | | +----------------------------------------------------+ Best States ------------- Heat Dissipation 25 Energy Generation 14 Energy Capacity 280 Matter Stores 300 Matter Capacity 300 Sight Range 16 Terrain Scan Density 10 Armor Coverage 150 Evasion (%) 40 Recoil Reduction 2 Item Schematics ----------------- Flight Unit | -10/Materials | Hacked Robot Schematics ------------------ None Fabricated ------------ Nothing Alien Tech Used ----------------- None Achievements -------------- Exterminator Let's See Who's Tougher Challenges ------------ None Game ------ Seed BlastCouplerDetector Manual? 0 Play Time 00:13:09 Cumulative 7.7 hours Start 2024.04.16 @ 23:50:05 End 2024.04.17 @ 00:03:13 Sessions 1 Manual Loads 0 Difficulty Rogue Special Mode None Game No. 15 Rogue 15 Adventurer 0 Explorer 0 Win Type - Total 0 Types 0/0/0/0/0/0/0/0/0 Lore% 4 Gallery% 15 Achievement% 14 Wizard Run 0 Options --------- Layout 1 ASCII 0 Keyboard 0 Movement Mouse Keybinds 0 Fullscreen 1 Font 24/Terminus Map View 50x35 Zoom Use 0% Tactical HUD 1 Map Filters NONE Filters NONE Steam 1 RUN: dd095b85-7330-4da9-916b-eb799bd11d3d